fUST/lending_fUST_20251129
["ID","MTS","AMOUNT","RATE_DAILY","PERIOD"]
[395035098,1764355635275,-204.0,0.00012686,2]
[395035099,1764355635294,-928.3807,0.00013699,2]
[395035100,1764355635313,-500.0,0.00014566,2]
[395035101,1764355635332,-231.0,0.00014686,2]
[395035102,1764355635353,-300.0,0.00014692,2]
[395035103,1764355635372,-4718.34316194,0.00014693,2]
[395035104,1764355640078,-3140.64643992,0.00014693,2]
[395035105,1764355640098,-500.0,0.00014792,2]
[395035106,1764355640118,-412.9800477,0.00014792,2]
[395035107,1764355640142,-119.22541235,0.00014792,2]
[395035108,1764355746090,-300.0,0.00013698,2]
[395035109,1764355746109,-50000.0,0.00013699,2]
[395035110,1764355746128,-24948.6531826,0.00013935,2]
[395035111,1764355746148,-808.48567506,0.00014439,2]
[395035112,1764355746168,-500.0,0.00014539,2]
[395035113,1764355746193,-500.0,0.00014678,2]
[395035114,1764355746224,-500.0,0.00014678,2]
[395035115,1764355746257,-500.0,0.00014678,2]
[395035116,1764355746282,-500.0,0.00014678,2]
[395035117,1764355746306,-500.0,0.00014678,2]
[395035118,1764355746331,-500.0,0.00014678,2]
[395035119,1764355746355,-500.0,0.00014678,2]
[395035120,1764355746379,-500.0,0.00014678,2]
[395035121,1764355746402,-500.0,0.00014678,2]
[395035122,1764355746425,-500.0,0.00014678,2]
[395035123,1764355746449,-500.0,0.00014678,2]
[395035124,1764355746472,-500.0,0.00014678,2]
[395035125,1764355746500,-500.0,0.00014678,2]
[395035126,1764355746524,-500.0,0.00014678,2]
[395035127,1764355746550,-500.0,0.00014678,2]
[395035128,1764355746576,-500.0,0.00014678,2]
[395035129,1764355746600,-500.0,0.00014678,2]
[395035130,1764355746625,-500.0,0.00014678,2]
[395035131,1764355746648,-500.0,0.00014678,2]
[395035132,1764355746672,-500.0,0.00014678,2]
[395035133,1764355746696,-500.0,0.00014678,2]
[395035134,1764355746722,-500.0,0.00014678,2]
[395035135,1764355746746,-500.0,0.00014678,2]
[395035136,1764355746779,-500.0,0.00014678,2]
[395035137,1764355746807,-404.74264479,0.00014678,2]
[395035138,1764355746832,-500.0,0.00014678,2]
[395035139,1764355746858,-500.0,0.00014678,2]
[395035140,1764355746883,-500.0,0.00014678,2]
[395035141,1764355746907,-500.0,0.00014678,2]
[395035142,1764355746932,-500.0,0.00014678,2]
[395035143,1764355746958,-500.0,0.00014678,2]
[395035144,1764355746979,-500.0,0.00014679,2]
[395035145,1764355746999,-185.95555613,0.00014692,2]
[395035146,1764355747019,-300.0,0.00014792,2]
[395035147,1764355747040,-300.0,0.00014792,2]
[395035148,1764355747062,-1200.0,0.00014792,2]
[395035149,1764355747082,-500.0,0.00014858,2]
[395035150,1764355747103,-70.91205462,0.00014875,2]
[395035151,1764355747299,-429.08794538,0.00014875,2]
[395035152,1764355747327,-160.0,0.00014894,2]
[395035153,1764355747348,-353.59244258,0.00014894,2]
[395035154,1764355747371,-160.0,0.00014904,2]
[395035155,1764355747392,-500.0,0.00014906,2]
[395035156,1764355747414,-420.0,0.00015011,2]
[395035157,1764355747436,-7858.98960185,0.00015104,2]
[395035158,1764355747458,-500.0,0.00015243,2]
[395035159,1764355747482,-500.0,0.00015334,2]
[395035160,1764355747509,-7858.98960185,0.00015516,2]
[395035161,1764355797582,242.84235825,9.107e-05,2]
[395035162,1764355813247,1333.078303,0.00013699,2]
[395035175,1764355832263,-1111.0,0.00015854,2]
[395035176,1764355832273,-941.0,0.00015854,2]
[395035177,1764355832283,-150.0,0.0001589,2]
[395035178,1764355832292,-7858.98960185,0.00015927,2]
[395035179,1764355832302,-283.0,0.00015927,2]
[395035180,1764355832311,-1200.0,0.00015963,2]
[395035181,1764355832321,-500.0,0.00015964,2]
[395035182,1764355832330,-300.0,0.00016071,2]
[395035183,1764355832340,-219.01906667,0.00016072,2]
[395035184,1764355832349,-500.0,0.00016072,2]
[395035185,1764355832359,-500.0,0.00016072,2]
[395035186,1764355832369,-500.0,0.00016072,2]
[395035187,1764355832379,-226.08987568,0.00016072,2]
[395035188,1764355832389,-500.0,0.00016072,2]
[395035190,1764355832399,-500.0,0.00016072,2]
[395035192,1764355832408,-500.0,0.00016072,2]
[395035194,1764355832418,-62876.42192142,0.00016073,2]
[395035246,1764355838221,-4717.75764161,0.00016073,2]
[395035248,1764355838233,-3474.46893236,0.00016073,2]
[395035250,1764355838275,-356.87099803,0.00016073,2]
[395035251,1764355838287,-706.72910092,0.00016073,2]
[395035252,1764355838299,-955.22253843,0.00016073,2]
[395035253,1764355838310,-1020.48504317,0.00016073,2]
[395035254,1764355838322,-2329.95344942,0.00016073,2]
[395035255,1764355838333,-557.69832396,0.00016073,2]
[395035256,1764355838345,-43632.25982688,0.00016073,2]
[395035257,1764355838356,-20189.96863209,0.00016073,2]
[395035258,1764355838366,-7304.11508898,0.00016073,2]
[395035259,1764355838377,-609.87396447,0.00016073,2]
[395035260,1764355838389,-2694.248208,0.00016073,2]
[395035261,1764355838409,-1920.14731643,0.00016073,2]
[395035262,1764355838421,-1366.68091614,0.00016073,2]
[395035263,1764355838433,-418.70525394,0.00016073,2]
[395035270,1764355840495,-1757.62581845,0.00016073,2]
[395035271,1764355840509,-2077.3072027,0.00016073,2]
[395035272,1764355840563,-122239.55613608,0.00016073,2]
[395035273,1764355840573,-194.72792766,0.00016163,2]
[395035274,1764355840584,-411.03492774,0.00016172,2]
[395035275,1764355840596,-808.48567499,0.00016276,2]
[395035276,1764355840606,-7858.98960185,0.00016338,2]
[395035277,1764355840617,-471.38,0.00016428,3]
[395035278,1764355840627,-235.69,0.00016428,3]
[395035279,1764355840636,-707.09,0.00016428,3]
[395035280,1764355840646,-500.0,0.00016437,2]
[395035281,1764355840655,-500.0,0.00016438,2]
[395035282,1764355840665,-500.0,0.00016438,2]
[395035283,1764355840674,-500.0,0.00016438,2]
[395035284,1764355840684,-273.0023405,0.00016438,2]
[395035285,1764355840694,-500.0,0.00016438,2]
[395035286,1764355840703,-500.0,0.00016438,2]
[395035287,1764355840712,-500.0,0.00016438,2]
[395035288,1764355840722,-500.0,0.00016438,2]
[395035289,1764355840731,-500.0,0.00016438,2]
[395035290,1764355840740,-500.0,0.00016438,2]
[395035291,1764355840749,-500.0,0.00016438,2]
[395035292,1764355840759,-500.0,0.00016438,2]
[395035293,1764355840768,-500.0,0.00016438,2]
[395035294,1764355840777,-744.92,0.00016438,2]
[395035295,1764355840786,-500.0,0.00016438,2]
[395035296,1764355840796,-500.0,0.00016438,2]
[395035297,1764355840805,-781.99,0.00016438,2]
[395035298,1764355840815,-733.32,0.00016438,2]
[395035299,1764355840824,-825.59,0.00016438,2]
[395035300,1764355840833,-181.73022894,0.00016438,2]
[395035301,1764355840843,-500.0,0.00016438,2]
[395035302,1764355840852,-596.56,0.00016438,2]
[395035303,1764355840861,-500.0,0.00016438,2]
[395035304,1764355840871,-500.0,0.00016438,2]
[395035305,1764355840880,-669.86,0.00016438,2]
[395035306,1764355840890,-500.0,0.00016438,2]
[395035307,1764355840900,-500.0,0.00016438,2]
[395035308,1764355840910,-500.0,0.00016438,2]
[395035309,1764355840919,-500.0,0.00016438,2]
[395035310,1764355840928,-536.31,0.00016438,2]
[395035311,1764355840938,-500.0,0.00016438,2]
[395035312,1764355840948,-500.0,0.00016438,2]
[395035313,1764355840958,-500.0,0.00016438,2]
[395035314,1764355840967,-500.0,0.00016438,2]
[395035315,1764355840977,-500.0,0.00016438,2]
[395035316,1764355840986,-500.0,0.00016438,2]
[395035317,1764355840996,-500.0,0.00016438,2]
[395035318,1764355841006,-500.0,0.00016438,2]
[395035319,1764355841016,-1456.14,0.00016438,2]
[395035320,1764355841025,-227.21228124,0.00016438,2]
[395035321,1764355841034,-211.71689504,0.00016438,2]
[395035322,1764355841043,-939.38,0.00016438,2]
[395035323,1764355841052,-614.38,0.00016438,2]
[395035324,1764355841061,-500.0,0.00016438,2]
[395035325,1764355841070,-500.0,0.00016438,2]
[395035326,1764355841080,-529.88,0.00016438,2]
[395035327,1764355841089,-950.92,0.00016438,2]
[395035328,1764355841098,-500.0,0.00016438,2]
[395035329,1764355841107,-835.5,0.00016438,2]
[395035330,1764355841116,-500.0,0.00016438,2]
[395035331,1764355841126,-500.0,0.00016438,2]
[395035332,1764355841135,-500.0,0.00016438,2]
[395035333,1764355841145,-604.09,0.00016438,2]
[395035334,1764355841154,-500.0,0.00016438,2]
[395035335,1764355841163,-500.0,0.00016438,2]
[395035336,1764355841172,-500.0,0.00016438,2]
[395035337,1764355841181,-500.0,0.00016438,2]
[395035338,1764355841190,-500.0,0.00016438,2]
[395035339,1764355841199,-744.38,0.00016438,2]
[395035340,1764355841209,-538.15,0.00016438,2]
[395035341,1764355841219,-500.0,0.00016438,2]
[395035342,1764355841228,-1423.73,0.00016438,2]
[395035343,1764355841238,-500.0,0.00016438,2]
[395035344,1764355841247,-500.0,0.00016438,2]
[395035345,1764355841256,-500.0,0.00016438,2]
[395035346,1764355841265,-500.0,0.00016438,2]
[395035347,1764355841275,-500.0,0.00016438,2]
[395035348,1764355841284,-1057.35,0.00016438,2]
[395035349,1764355841294,-500.0,0.00016438,2]
[395035350,1764355841303,-500.0,0.00016438,2]
[395035352,1764355841312,-500.0,0.00016438,2]
[395035353,1764355841321,-500.0,0.00016438,2]
[395035354,1764355841330,-162.50065566,0.00016438,2]
[395035357,1764355841344,-352.41934434,0.00016438,2]
[395035359,1764355841353,-500.0,0.00016438,2]
[395035361,1764355841362,-500.0,0.00016438,2]
[395035363,1764355841372,-500.0,0.00016438,2]
[395035365,1764355841381,-985.7,0.00016438,2]
[395035367,1764355841391,-500.0,0.00016438,2]
[395035369,1764355841400,-500.0,0.00016438,2]
[395035371,1764355841410,-500.0,0.00016438,2]
[395035373,1764355841420,-500.0,0.00016438,2]
[395035375,1764355841429,-500.0,0.00016438,2]
[395035377,1764355841438,-500.0,0.00016438,2]
[395035379,1764355841448,-500.0,0.00016438,2]
[395035381,1764355841457,-500.0,0.00016438,2]
[395035383,1764355841466,-500.0,0.00016438,2]
[395035385,1764355841475,-500.0,0.00016438,2]
[395035387,1764355841485,-500.0,0.00016438,2]
[395035389,1764355841494,-962.79,0.00016438,2]
[395035391,1764355841503,-500.0,0.00016438,2]
[395035393,1764355841516,-1001.24,0.00016438,2]
[395035395,1764355841526,-489.29065566,0.00016438,2]
[395035397,1764355841539,-286.53934434,0.00016438,2]
[395035399,1764355841548,-535.57,0.00016438,2]
[395035401,1764355841558,-41.44355522,0.00016438,2]
[395035591,1764355843400,-1046.53644478,0.00016438,2]
[395035592,1764355843409,-625.01,0.00016438,2]
[395035593,1764355843419,-500.0,0.00016438,2]
[395035594,1764355843429,-516.02325495,0.00016438,2]
[395035595,1764355843440,-106.27674505,0.00016438,2]
[395035596,1764355843450,-500.0,0.00016438,2]
[395035597,1764355843460,-541.22325495,0.00016438,2]
[395035598,1764355843562,-453.63674505,0.00016438,2]
[395035599,1764355843572,-178.25238115,0.00016438,2]
[395035600,1764355844122,-425.42761885,0.00016438,2]
[395035601,1764355844131,-183.17439557,0.00016438,2]
[395035617,1764355846931,-403.72996231,0.00016438,2]
[395035618,1764355846946,-657.86564212,0.00016438,2]
[395035619,1764355846957,-500.0,0.00016438,2]
[395035620,1764355846966,-500.0,0.00016438,2]
[395035621,1764355846975,-615.08041757,0.00016438,2]
[395035622,1764355846985,-724.08,0.00016438,2]
[395035623,1764355846994,-500.0,0.00016438,2]
[395035624,1764355847003,-258.04746271,0.00016438,2]
[395035625,1764355847012,-322.94851694,0.00016438,2]
[395035626,1764355847024,-177.05148306,0.00016438,2]
[395035627,1764355847033,-500.0,0.00016438,2]
[395035628,1764355847043,-708.6,0.00016438,2]
[395035629,1764355847052,-500.0,0.00016438,2]
[395035630,1764355847061,-1266.98,0.00016438,2]
[395035631,1764355847071,-500.0,0.00016438,2]
[395035632,1764355847080,-742.63,0.00016438,2]
[395035633,1764355847090,-500.0,0.00016438,2]
[395035634,1764355847099,-1237.02,0.00016438,2]
[395035635,1764355847109,-500.0,0.00016438,2]
[395035636,1764355847118,-1147.36,0.00016438,2]
[395035637,1764355847128,-774.67,0.00016438,2]
[395035638,1764355847138,-500.0,0.00016438,2]
[395035639,1764355847147,-1007.01,0.00016438,2]
[395035640,1764355847158,-500.0,0.00016438,2]
[395035641,1764355847175,-500.0,0.00016438,2]
[395035642,1764355847185,-500.0,0.00016438,2]
[395035643,1764355847194,-668.89,0.00016438,2]
[395035644,1764355847204,-593.29,0.00016438,2]
[395035645,1764355847214,-599.1411419,0.00016438,2]
[395035646,1764355847223,-500.0,0.00016438,2]
[395035647,1764355847233,-500.0,0.00016438,2]
[395035648,1764355847242,-500.0,0.00016438,2]
[395035649,1764355847251,-528.65,0.00016438,2]
[395035650,1764355847260,-500.0,0.00016438,2]
[395035651,1764355847270,-500.0,0.00016438,2]
[395035652,1764355847279,-500.0,0.00016438,2]
[395035653,1764355847288,-634.73,0.00016438,2]
[395035654,1764355847298,-500.0,0.00016438,2]
[395035655,1764355847308,-500.0,0.00016438,2]
[395035656,1764355847317,-500.0,0.00016438,2]
[395035657,1764355847327,-500.0,0.00016438,2]
[395035658,1764355847336,-1934.65,0.00016438,2]
[395035659,1764355847346,-500.0,0.00016438,2]
[395035660,1764355847355,-500.0,0.00016438,2]
[395035661,1764355847365,-1067.39,0.00016438,2]
[395035662,1764355847375,-510.82,0.00016438,2]
[395035663,1764355847385,-500.0,0.00016438,2]
[395035664,1764355847395,-389.76824448,0.00016438,2]
[395035665,1764355847404,-584.83723789,0.00016438,2]
[395035666,1764355847430,-2.51276211,0.00016438,2]
[395035667,1764355847440,-500.0,0.00016438,2]
[395035668,1764355847451,-500.0,0.00016438,2]
[395035669,1764355847461,-592.64069795,0.00016438,2]
[395035670,1764355864453,500.0,0.00014678,2]
[395035672,1764355898868,-800.0,0.00018356,7]
[395035673,1764355899134,-1781.6541542,0.00019,12]
[395035674,1764355899406,-800.0,0.00019452,7]
[395035675,1764355899466,-306.0,0.0002,20]
[395035676,1764355899490,-160.0,0.0002,14]
[395035677,1764355899513,-1001.88,0.0002,10]
[395035678,1764355899538,-23042.5858458,0.0002,7]
[395035679,1764355901132,181.335961,0.00015445,2]
[395035680,1764355928184,161.513525,0.0002,30]
[395035681,1764355938934,700.0,0.00018356,7]
[395035682,1764355939542,100.0,0.00019452,7]
[395035683,1764356530079,25469.70384462,0.000215,120]
[395035684,1764356723615,902.43643478,0.0002,10]
[395035691,1764356834369,-234.79825792,8.996e-05,2]
[395035692,1764356834388,-224.0,8.996e-05,2]
[395035693,1764356834407,-150.0,0.00010435,2]
[395035694,1764356834427,-177.0,0.00012435,2]
[395035695,1764356834445,-204.0,0.00014435,2]
[395035696,1764356834465,-160.0,0.00014737,2]
[395035697,1764356834484,-500.0,0.00014769,2]
[395035698,1764356834502,-500.0,0.00014823,2]
[395035699,1764356834521,-500.0,0.00015374,2]
[395035700,1764356834540,-353.59244258,0.00015516,2]
[395035701,1764356834559,-300.0,0.0001597,2]
[395035702,1764356834577,-1000.73822109,0.00015971,2]
[395035703,1764356834597,-41481.14640906,0.00015971,2]
[395035704,1764356837100,-417.28519,0.00015971,2]
[395035705,1764356845078,-936.2581897,0.00015689,2]
[395035706,1764356845099,-146.83298424,0.00015971,2]
[395035707,1764356854072,-500.0,0.00014582,2]
[395035708,1764356854090,-500.0,0.00015041,2]
[395035709,1764356854109,-500.0,0.00015472,2]
[395035710,1764356854128,-500.0,0.00015615,2]
[395035711,1764356854148,-500.0,0.00015827,2]
[395035712,1764356854167,-2432.53605544,0.00015971,2]
[395035713,1764356948105,-319.9,0.00012108,2]
[395035714,1764356948128,-305.5066,0.00012108,2]
[395035754,1764357032882,-242.96371875,9.107e-05,2]
[395035756,1764357032892,-225.0,9.107e-05,2]
[395035758,1764357032902,-14.3934,0.00012108,2]
[395035760,1764357032912,-275.4913126,0.00015893,2]
[395035762,1764357032921,-353.59244258,0.00015939,2]
[395035764,1764357032930,-936.26101971,0.00015963,2]
[395035766,1764357032939,-500.0,0.00015971,2]
[395035768,1764357032949,-500.0,0.00015971,2]
[395035770,1764357032958,-500.0,0.00015971,2]
[395035772,1764357032967,-500.0,0.00015971,2]
[395035774,1764357032976,-500.0,0.00015971,2]
[395035776,1764357032985,-300.0,0.00015971,2]
[395035778,1764357032994,-239.55092088,0.00015971,2]
[395035783,1764357033030,-331.44907912,0.00015971,2]
[395035784,1764357033039,-37073.53832226,0.00015972,2]
[395035787,1764357033050,-1033.83561531,0.00015972,2]
[395035789,1764357033061,-11892.62606243,0.00015972,2]
[395035791,1764357033070,-153.31334667,0.00015972,2]
[395035793,1764357033080,-500.0,0.00015972,2]
[395035795,1764357033089,-258.26291297,0.00015972,2]
[395035797,1764357033098,-500.0,0.00015972,2]
[395035799,1764357033107,-500.0,0.00015972,2]
[395035801,1764357033116,-500.0,0.00015972,2]
[395035803,1764357033126,-44695.79767793,0.00015973,2]
[395035855,1764357038407,-26551.974852,0.00015973,2]
[395035871,1764357038550,-405.44356522,0.00015973,2]
[395035912,1764357040833,-8400.0,0.00015973,2]
[395035939,1764357046602,-1088.15542891,0.00015813,2]
[395035940,1764357046612,-20529.13312338,0.00015973,2]
[395035941,1764357046623,-1922.9000002,0.00015973,2]
[395035943,1764357046706,-600.0,0.00015973,2]
[395035952,1764357571763,99.44356522,0.000196,10]
[395035953,1764357649335,-910.0,8.575e-05,2]
[395035954,1764357679564,616.13536636,8.489e-05,2]
[395035955,1764357701629,616.13536636,8.489e-05,2]
[395035956,1764357837958,616.13536636,8.489e-05,2]
[395035958,1764358053097,-150.0,8.532e-05,2]
[395035959,1764358053122,-150.0,8.618e-05,2]
[395035960,1764358053145,-222.0,8.662e-05,2]
[395035961,1764358053168,-1025.9845468,9.016e-05,2]
[395035962,1764358053189,-278.15081956,9.107e-05,2]
[395035963,1764358053211,-177.0,0.00010618,2]
[395035964,1764358053234,-204.0,0.00012618,2]
[395035965,1764358053255,-235.26785443,0.00013656,2]
[395035966,1764358053277,-61.86516031,0.00013895,2]
[395035967,1764358054806,150.0,8.447e-05,2]
[395035968,1764358145284,-160.0,0.00013756,2]
[395035969,1764358145304,-160.0,0.00013895,2]
[395035970,1764358145326,-150.0,0.00014244,2]
[395035971,1764358145346,-300.0,0.00014593,2]
[395035972,1764358145367,-1200.0,0.00014594,2]
[395035973,1764358145387,-353.59244258,0.00014594,2]
[395035974,1764358145409,-500.0,0.00014594,2]
[395035975,1764358145429,-500.0,0.00014594,2]
[395035976,1764358145448,-500.0,0.00014594,2]
[395035977,1764358145468,-500.0,0.00014594,2]
[395035978,1764358145489,-500.0,0.00014594,2]
[395035979,1764358145515,-500.0,0.00014594,2]
[395035980,1764358145534,-500.0,0.00014594,2]
[395035981,1764358145552,-409.53590706,0.00014594,2]
[395035982,1764358145571,-300.60361281,0.00014594,2]
[395035983,1764358145595,-500.0,0.00014594,2]
[395035984,1764358145615,-500.0,0.00014594,2]
[395035985,1764358145635,-341.90077138,0.00014594,2]
[395035986,1764358145654,-500.0,0.00014594,2]
[395035987,1764358145678,-500.0,0.00014594,2]
[395035988,1764358145698,-500.0,0.00014594,2]
[395035989,1764358145718,-500.0,0.00014594,2]
[395035990,1764358145738,-500.0,0.00014594,2]
[395035991,1764358145761,-500.0,0.00014594,2]
[395035992,1764358145780,-500.0,0.00014594,2]
[395035993,1764358145799,-500.0,0.00014594,2]
[395035994,1764358145824,-500.0,0.00014594,2]
[395035995,1764358145844,-500.0,0.00014594,2]
[395035996,1764358145864,-500.0,0.00014594,2]
[395035997,1764358145883,-500.0,0.00014594,2]
[395035998,1764358145906,-500.0,0.00014594,2]
[395035999,1764358145926,-500.0,0.00014594,2]
[395036000,1764358145950,-500.0,0.00014594,2]
[395036001,1764358145972,-500.0,0.00014594,2]
[395036002,1764358145992,-500.0,0.00014594,2]
[395036003,1764358146014,-500.0,0.00014594,2]
[395036004,1764358146035,-500.0,0.00014594,2]
[395036005,1764358146055,-500.0,0.00014594,2]
[395036006,1764358146078,-500.0,0.00014594,2]
[395036007,1764358146099,-500.0,0.00014594,2]
[395036008,1764358146124,-500.0,0.00014594,2]
[395036009,1764358146145,-280.53263674,0.00014594,2]
[395036010,1764358146167,-175.0,0.00014594,2]
[395036011,1764358146192,-500.0,0.00014594,2]
[395036012,1764358146211,-500.0,0.00014594,2]
[395036013,1764358146236,-500.0,0.00014594,2]
[395036014,1764358146256,-500.0,0.00014594,2]
[395036015,1764358146280,-500.0,0.00014594,2]
[395036016,1764358146300,-500.0,0.00014594,2]
[395036017,1764358146324,-500.0,0.00014594,2]
[395036018,1764358146343,-500.0,0.00014594,2]
[395036019,1764358146363,-500.0,0.00014594,2]
[395036020,1764358146383,-500.0,0.00014594,2]
[395036021,1764358146406,-500.0,0.00014594,2]
[395036022,1764358146430,-500.0,0.00014594,2]
[395036023,1764358146450,-500.0,0.00014594,2]
[395036024,1764358146472,-500.0,0.00014594,2]
[395036025,1764358146492,-500.0,0.00014594,2]
[395036026,1764358146516,-500.0,0.00014594,2]
[395036027,1764358146539,-500.0,0.00014594,2]
[395036028,1764358146559,-500.0,0.00014594,2]
[395036029,1764358146582,-500.0,0.00014594,2]
[395036030,1764358146600,-500.0,0.00014594,2]
[395036031,1764358146624,-500.0,0.00014594,2]
[395036032,1764358146646,-500.0,0.00014594,2]
[395036033,1764358146668,-500.0,0.00014594,2]
[395036034,1764358146691,-500.0,0.00014594,2]
[395036035,1764358146714,-500.0,0.00014594,2]
[395036036,1764358146736,-500.0,0.00014594,2]
[395036037,1764358146938,-500.0,0.00014594,2]
[395036038,1764358147013,-500.0,0.00014594,2]
[395036039,1764358147036,-500.0,0.00014594,2]
[395036040,1764358147059,-500.0,0.00014594,2]
[395036041,1764358147082,-500.0,0.00014594,2]
[395036042,1764358147106,-500.0,0.00014594,2]
[395036043,1764358147135,-500.0,0.00014594,2]
[395036044,1764358147161,-500.0,0.00014594,2]
[395036045,1764358147184,-500.0,0.00014594,2]
[395036046,1764358147205,-500.0,0.00014594,2]
[395036047,1764358147227,-500.0,0.00014594,2]
[395036048,1764358147250,-522.32436303,0.00014594,2]
[395036049,1764358147272,-500.0,0.00014594,2]
[395036050,1764358147294,-500.0,0.00014594,2]
[395036051,1764358147316,-500.0,0.00014594,2]
[395036052,1764358147339,-500.0,0.00014594,2]
[395036053,1764358147361,-500.0,0.00014594,2]
[395036054,1764358147380,-220.39305008,0.00014595,2]
[395036055,1764358147400,-50000.0,0.00014595,2]
[395036056,1764358147419,-500.0,0.000146,2]
[395036057,1764358147437,-300.0,0.00014617,2]
[395036058,1764358147456,-300.0,0.00014617,2]
[395036059,1764358147475,-300.0,0.00014617,2]
[395036060,1764358147495,-1200.0,0.00014617,2]
[395036061,1764358147514,-500.0,0.00014685,2]
[395036062,1764358147533,-194.72792766,0.00014687,2]
[395036063,1764358147552,-500.0,0.00014964,2]
[395036064,1764358147571,-155.25804875,0.00015031,2]
[395036065,1764358148089,-500.0,0.00014594,2]
[395036066,1764358148109,-65.13500133,0.00015031,2]
[395036067,1764358148128,-988.72359867,0.00015148,2]
[395036068,1764358158094,-11.27640133,0.00015148,2]
[395036069,1764358158117,-201.93286099,0.00015235,2]
[395036070,1764358158137,-220.39305008,0.00015467,2]
[395036071,1764358158163,-1340.25854932,0.00015696,2]
[395036102,1764358231729,-194.72792766,0.0001461,2]
[395036104,1764358231738,-201.93286099,0.00015158,2]
[395036106,1764358231747,-159.74145068,0.00015539,2]
[395036108,1764358231756,-159.74145068,0.00015696,2]
[395036109,1764358231766,-209.40437684,0.00015706,2]
[395036111,1764358231776,-917.33926004,0.00015781,2]
[395036113,1764358231786,-388.0,0.00015781,2]
[395036115,1764358231797,-775.0,0.00015782,2]
[395036117,1764358231806,-220.39305008,0.00015902,2]
[395036119,1764358231816,-333.0,0.00015909,2]
[395036121,1764358231825,-333.0,0.00015909,2]
[395036123,1764358231836,-707.07,0.00015916,3]
[395036125,1764358231846,-235.69,0.00015917,3]
[395036127,1764358231855,-300.0,0.00015924,2]
[395036129,1764358231865,-1812.38835115,0.00015925,2]
[395036131,1764358231877,-34175.77912859,0.00015925,2]
[395036133,1764358231887,-500.0,0.00015925,2]
[395036135,1764358231895,-246.12491058,0.00015925,2]
[395036137,1764358231904,-500.0,0.00015925,2]
[395036139,1764358231914,-580.78403908,0.00015925,2]
[395036141,1764358231923,-34435.02682838,0.00015926,2]
[395036145,1764358231959,-1273.65178104,0.00015926,2]
[395036147,1764358231970,-2445.36144864,0.00015926,2]
[395036165,1764358237601,-333.0,0.00015909,2]
[395036166,1764358237611,-5.84055212,0.00015909,2]
[395036169,1764358237658,-327.15944788,0.00015909,2]
[395036170,1764358237667,-229.9741851,0.00015909,2]
[395036171,1764358237679,-103.0258149,0.00015909,2]
[395036172,1764358237688,-293.86169864,0.00015909,2]
[395036173,1764358237699,-39.13830136,0.00015909,2]
[395036174,1764358237709,-252.16185364,0.00015926,2]
[395036175,1764358237720,-890.15205145,0.00015926,2]
[395036176,1764358237732,-281.00478041,0.00015926,2]
[395036177,1764358238048,-3627.64125644,0.00015926,2]
[395036178,1764358238059,-175.1244022,0.00015927,2]
[395036179,1764358238069,-4624.14795933,0.00015927,2]
[395036180,1764358238081,-19470.29374046,0.00015927,2]
[395036181,1764358238092,-4819.5,0.00015927,2]
[395036182,1764358238104,-2781.88359741,0.00015927,2]
[395036183,1764358238114,-5067.7480226,0.00015927,2]
[395036184,1764358238123,-500.0,0.00016072,2]
[395036185,1764358238133,-4090.75807,0.00016112,2]
[395036186,1764358238143,-177.0,0.00016244,2]